[Event "Titled Tuesday Blitz November 14 Early 2023"]
[White "Dahlgren, James Allen"]
[Black "Manon-og, Ramon Jr."]
[WhiteFideId "22256873"]
[BlackFideId "5200776"]
[WhiteElo "2130"]
[BlackElo "2334"]
[Result "1-0"]
[Round "7"]
[TimeControl "180+1"]
[Date "2023.11.14"]
[WhiteClock "0:02:10"]
[BlackClock "0:02:13"]
[Board "175"]

1. d3 {[%clk 0:02:26]}  Nf6 {[%clk 0:02:57]} 2. f4 {[%clk 0:02:27]}  g6 {[%clk 0:02:58]} 3. Nf3 {[%clk 0:02:27]}  d5 {[%clk 0:02:58]} 4. g3 {[%clk 0:02:28]}  Bg7 {[%clk 0:02:59]} 5. Bg2 {[%clk 0:02:28]}  O-O {[%clk 0:02:59]} 6. O-O {[%clk 0:02:29]}  d4 {[%clk 0:02:59]} 7. e4 {[%clk 0:02:29]}  dxe3 {[%clk 0:02:58]} 8. Bxe3 {[%clk 0:02:28]}  Ng4 {[%clk 0:02:57]} 9. Bc1 {[%clk 0:02:29]}  Bd4+ {[%clk 0:02:55]} 10. Nxd4 {[%clk 0:02:23]}  Qxd4+ {[%clk 0:02:56]} 11. Kh1 {[%clk 0:02:24]}  Nf2+ {[%clk 0:02:56]} 12. Rxf2 {[%clk 0:02:24]}  Qxf2 {[%clk 0:02:57]} 13. Nc3 {[%clk 0:02:23]}  c6 {[%clk 0:02:40]} 14. Ne4 {[%clk 0:02:15]}  Qd4 {[%clk 0:02:34]} 15. Bd2 {[%clk 0:02:10]}  Qxb2 {[%clk 0:02:30]} 16. Bc3 {[%clk 0:02:11]}  Qxc2 {[%clk 0:02:13]} 17. Qxc2 {[%clk 0:02:10]} 1-0


[Site "https://www.chess.com"]

[Event "Titled Tuesday Blitz November 14 Early 2023"]
[White "Cueto, Jonny"]
[Black "Villafane Gomez, Jaime"]
[WhiteFideId "3300145"]
[BlackFideId "4426517"]
[WhiteElo "2220"]
[BlackElo "1740"]
[Result "1-0"]
[Round "7"]
[TimeControl "180+1"]
[Date "2023.11.14"]
[WhiteClock "0:01:14"]
[BlackClock "0:00:00"]
[Board "181"]

1. d4 {[%clk 0:02:59]}  Nf6 {[%clk 0:02:58]} 2. Bf4 {[%clk 0:02:58]}  g6 {[%clk 0:02:53]} 3. Nc3 {[%clk 0:02:57]}  d5 {[%clk 0:02:51]} 4. e3 {[%clk 0:02:58]}  Bg7 {[%clk 0:02:51]} 5. h4 {[%clk 0:02:59]}  h5 {[%clk 0:02:50]} 6. Nf3 {[%clk 0:02:59]}  c5 {[%clk 0:02:14]} 7. Nb5 {[%clk 0:02:57]}  Na6 {[%clk 0:02:11]} 8. c3 {[%clk 0:02:56]}  Bd7 {[%clk 0:02:00]} 9. a4 {[%clk 0:02:56]}  cxd4 {[%clk 0:01:40]} 10. exd4 {[%clk 0:02:53]}  O-O {[%clk 0:01:39]} 11. Bd3 {[%clk 0:02:53]}  Ng4 {[%clk 0:01:22]} 12. O-O {[%clk 0:02:46]}  Re8 {[%clk 0:01:11]} 13. Re1 {[%clk 0:02:39]}  Bxb5 {[%clk 0:00:50]} 14. Bxb5 {[%clk 0:02:29]}  Nc7 {[%clk 0:00:49]} 15. Bxe8 {[%clk 0:02:28]}  Nxe8 {[%clk 0:00:38]} 16. Qb3 {[%clk 0:02:26]}  Qd7 {[%clk 0:00:35]} 17. Qb5 {[%clk 0:01:54]}  Qxb5 {[%clk 0:00:13]} 18. axb5 {[%clk 0:01:53]}  e6 {[%clk 0:00:13]} 19. Ra4 {[%clk 0:01:21]}  Nef6 {[%clk 0:00:02]} 20. Rea1 {[%clk 0:01:18]}  Ne4 {[%clk 0:00:00]} 21. Rxa7 {[%clk 0:01:14]} 1-0


[Site "https://www.chess.com"]

[Event "Titled Tuesday Blitz November 14 Early 2023"]
[White "Vila Dupla, Aurelio"]
[Black "Cardenas Carbajal, Nilson"]
[WhiteFideId "2203383"]
[BlackFideId "8401128"]
[WhiteElo "2198"]
[BlackElo "2164"]
[Result "0-1"]
[Round "7"]
[TimeControl "180+1"]
[Date "2023.11.14"]
[WhiteClock "0:00:37"]
[BlackClock "0:00:05"]
[Board "184"]

1. Nf3 {[%clk 0:03:00]}  d5 {[%clk 0:02:58]} 2. d4 {[%clk 0:02:59]}  Nf6 {[%clk 0:02:56]} 3. c4 {[%clk 0:02:59]}  g6 {[%clk 0:02:50]} 4. cxd5 {[%clk 0:02:58]}  Nxd5 {[%clk 0:02:49]} 5. e4 {[%clk 0:02:58]}  Nb6 {[%clk 0:02:49]} 6. h3 {[%clk 0:02:56]}  Bg7 {[%clk 0:02:41]} 7. Be2 {[%clk 0:02:56]}  Nc6 {[%clk 0:02:42]} 8. Be3 {[%clk 0:02:55]}  O-O {[%clk 0:02:39]} 9. O-O {[%clk 0:02:55]}  Na5 {[%clk 0:02:38]} 10. Qc1 {[%clk 0:02:38]}  Be6 {[%clk 0:02:09]} 11. d5 {[%clk 0:02:25]}  Bd7 {[%clk 0:01:57]} 12. Bd4 {[%clk 0:02:22]}  Bxd4 {[%clk 0:01:35]} 13. Nxd4 {[%clk 0:02:21]}  c5 {[%clk 0:01:30]} 14. Qxc5 {[%clk 0:02:07]}  Nac4 {[%clk 0:01:11]} 15. Bxc4 {[%clk 0:02:02]}  Rc8 {[%clk 0:01:09]} 16. Nc6 {[%clk 0:01:39]}  bxc6 {[%clk 0:01:05]} 17. Ba6 {[%clk 0:01:36]}  Rc7 {[%clk 0:01:01]} 18. d6 {[%clk 0:01:34]}  exd6 {[%clk 0:00:53]} 19. Qxd6 {[%clk 0:01:34]}  Be6 {[%clk 0:00:26]} 20. Rd1 {[%clk 0:01:33]}  Rd7 {[%clk 0:00:18]} 21. e5 {[%clk 0:01:27]}  Rxd6 {[%clk 0:00:17]} 22. Rxd6 {[%clk 0:01:27]}  Qg5 {[%clk 0:00:16]} 23. Rxc6 {[%clk 0:01:22]}  Qxe5 {[%clk 0:00:17]} 24. Nc3 {[%clk 0:01:22]}  Rd8 {[%clk 0:00:15]} 25. a4 {[%clk 0:01:03]}  Nd5 {[%clk 0:00:14]} 26. Rc5 {[%clk 0:01:00]}  Qd4 {[%clk 0:00:12]} 27. Rxd5 {[%clk 0:00:51]}  Bxd5 {[%clk 0:00:11]} 28. Rd1 {[%clk 0:00:51]}  Qc5 {[%clk 0:00:10]} 29. Ne4 {[%clk 0:00:48]}  Qe7 {[%clk 0:00:08]} 30. Nc3 {[%clk 0:00:41]}  Ba8 {[%clk 0:00:07]} 31. Rf1 {[%clk 0:00:41]}  Qg5 {[%clk 0:00:07]} 32. f3 {[%clk 0:00:38]}  Rd2 {[%clk 0:00:06]} 33. Ne4 {[%clk 0:00:37]}  Qxg2# {[%clk 0:00:05]} 0-1


[Site "https://www.chess.com"]

[Event "Titled Tuesday Blitz November 14 Early 2023"]
[White "Muradli, Mahammad"]
[Black "Andreikin, Dmitry"]
[WhiteFideId "13409301"]
[BlackFideId "4158814"]
[WhiteElo "3002"]
[BlackElo "3129"]
[Result "0-1"]
[Round "8"]
[TimeControl "180+1"]
[Date "2023.11.14"]
[WhiteClock "0:00:00"]
[BlackClock "0:00:10"]
[Board "3"]

1. Nf3 {[%clk 0:03:00]}  b5 {[%clk 0:02:54]} 2. a4 {[%clk 0:02:55]}  b4 {[%clk 0:02:54]} 3. b3 {[%clk 0:02:53]}  Bb7 {[%clk 0:02:53]} 4. Bb2 {[%clk 0:02:53]}  Nf6 {[%clk 0:02:53]} 5. g3 {[%clk 0:02:51]}  Bxf3 {[%clk 0:02:49]} 6. exf3 {[%clk 0:02:52]}  e6 {[%clk 0:02:49]} 7. Bg2 {[%clk 0:02:51]}  d5 {[%clk 0:02:50]} 8. O-O {[%clk 0:02:51]}  Be7 {[%clk 0:02:47]} 9. f4 {[%clk 0:02:51]}  O-O {[%clk 0:02:47]} 10. Re1 {[%clk 0:02:49]}  g6 {[%clk 0:02:42]} 11. h4 {[%clk 0:02:32]}  c5 {[%clk 0:02:40]} 12. d3 {[%clk 0:02:30]}  Nc6 {[%clk 0:02:40]} 13. Nd2 {[%clk 0:02:31]}  Nd7 {[%clk 0:02:28]} 14. Nf3 {[%clk 0:02:05]}  Bf6 {[%clk 0:02:28]} 15. Ne5 {[%clk 0:02:06]}  Rc8 {[%clk 0:02:03]} 16. h5 {[%clk 0:01:58]}  Bg7 {[%clk 0:01:57]} 17. hxg6 {[%clk 0:01:50]}  hxg6 {[%clk 0:01:57]} 18. Qg4 {[%clk 0:01:40]}  Ndxe5 {[%clk 0:01:21]} 19. fxe5 {[%clk 0:01:41]}  Qc7 {[%clk 0:01:07]} 20. Qg5 {[%clk 0:01:21]}  Rfd8 {[%clk 0:00:59]} 21. Re2 {[%clk 0:01:18]}  c4 {[%clk 0:00:46]} 22. Rae1 {[%clk 0:00:27]}  cxb3 {[%clk 0:00:29]} 23. cxb3 {[%clk 0:00:27]}  Na5 {[%clk 0:00:30]} 24. Rc1 {[%clk 0:00:28]}  Qd7 {[%clk 0:00:24]} 25. Rec2 {[%clk 0:00:23]}  Nxb3 {[%clk 0:00:19]} 26. Rxc8 {[%clk 0:00:13]}  Rxc8 {[%clk 0:00:20]} 27. Rxc8+ {[%clk 0:00:14]}  Qxc8 {[%clk 0:00:21]} 28. Bh3 {[%clk 0:00:07]}  Nc5 {[%clk 0:00:13]} 29. Qc1 {[%clk 0:00:08]}  Qc7 {[%clk 0:00:10]} 30. Bd4 {[%clk 0:00:04]}  Bf8 {[%clk 0:00:11]} 31. Bf1 {[%clk 0:00:03]}  b3 {[%clk 0:00:10]} 32. Qc3 {[%clk 0:00:01]}  Qb6 {[%clk 0:00:10]} 33. Qb2 {[%clk 0:00:02]}  Qb4 {[%clk 0:00:10]} 34. Be3 {[%clk 0:00:01]}  Nxa4 {[%clk 0:00:10]} 35. Qc1 {[%clk 0:00:00]}  b2 {[%clk 0:00:10]} 0-1


[Site "https://www.chess.com"]

[Event "Titled Tuesday Blitz November 14 Early 2023"]
[White "Alekseenko, Kirill"]
[Black "Erdogmus, Yagiz Kaan"]
[WhiteFideId "4135539"]
[BlackFideId "44599790"]
[WhiteElo "2928"]
[BlackElo "3047"]
[Result "1-0"]
[Round "8"]
[TimeControl "180+1"]
[Date "2023.11.14"]
[WhiteClock "0:00:35"]
[BlackClock "0:00:07"]
[Board "5"]

1. e4 {[%clk 0:02:59]}  c5 {[%clk 0:02:59]} 2. Nf3 {[%clk 0:02:59]}  d6 {[%clk 0:02:59]} 3. d4 {[%clk 0:02:59]}  cxd4 {[%clk 0:03:00]} 4. Nxd4 {[%clk 0:03:00]}  Nf6 {[%clk 0:02:59]} 5. Nc3 {[%clk 0:03:00]}  a6 {[%clk 0:02:58]} 6. Be2 {[%clk 0:03:01]}  e6 {[%clk 0:02:55]} 7. O-O {[%clk 0:02:59]}  Be7 {[%clk 0:02:54]} 8. f4 {[%clk 0:02:58]}  O-O {[%clk 0:02:54]} 9. Bf3 {[%clk 0:02:56]}  Qc7 {[%clk 0:02:51]} 10. a4 {[%clk 0:02:55]}  Nc6 {[%clk 0:02:45]} 11. Be3 {[%clk 0:02:55]}  Nxd4 {[%clk 0:02:18]} 12. Qxd4 {[%clk 0:02:54]}  e5 {[%clk 0:02:17]} 13. Qd2 {[%clk 0:02:54]}  Be6 {[%clk 0:02:14]} 14. f5 {[%clk 0:02:49]}  Bc4 {[%clk 0:01:54]} 15. Rfd1 {[%clk 0:02:49]}  Rac8 {[%clk 0:01:36]} 16. a5 {[%clk 0:02:35]}  d5 {[%clk 0:01:27]} 17. exd5 {[%clk 0:02:32]}  Bd6 {[%clk 0:01:14]} 18. Kh1 {[%clk 0:02:30]}  Qd7 {[%clk 0:00:57]} 19. b3 {[%clk 0:02:28]}  Bb4 {[%clk 0:00:53]} 20. bxc4 {[%clk 0:01:38]}  Rxc4 {[%clk 0:00:52]} 21. Rab1 {[%clk 0:01:38]}  Bxc3 {[%clk 0:00:49]} 22. Qe2 {[%clk 0:01:39]}  Rfc8 {[%clk 0:00:48]} 23. Qf1 {[%clk 0:01:20]}  Bxa5 {[%clk 0:00:44]} 24. d6 {[%clk 0:01:18]}  e4 {[%clk 0:00:42]} 25. Be2 {[%clk 0:01:18]}  Rxc2 {[%clk 0:00:41]} 26. Bd4 {[%clk 0:01:19]}  Qxd6 {[%clk 0:00:31]} 27. Rxb7 {[%clk 0:01:15]}  Rd2 {[%clk 0:00:17]} 28. Bb2 {[%clk 0:00:55]}  Bc7 {[%clk 0:00:13]} 29. g3 {[%clk 0:00:44]}  Rxd1 {[%clk 0:00:13]} 30. Qxd1 {[%clk 0:00:42]}  Qc6 {[%clk 0:00:13]} 31. Qb3 {[%clk 0:00:35]}  Bd6 {[%clk 0:00:07]} 32. Qxf7+ {[%clk 0:00:34]}  Kh8 {[%clk 0:00:07]} 33. Qxg7# {[%clk 0:00:35]} 1-0


[Site "https://www.chess.com"]

[Event "Titled Tuesday Blitz November 14 Early 2023"]
[White "Zhigalko, Sergei"]
[Black "Niemann, Hans Moke"]
[WhiteFideId "13502956"]
[BlackFideId "2093596"]
[WhiteElo "2915"]
[BlackElo "3043"]
[Result "1/2-1/2"]
[Round "8"]
[TimeControl "180+1"]
[Date "2023.11.14"]
[WhiteClock "0:00:05"]
[BlackClock "0:00:14"]
[Board "6"]

1. e4 {[%clk 0:03:00]}  e5 {[%clk 0:02:54]} 2. Nf3 {[%clk 0:03:00]}  Nc6 {[%clk 0:02:54]} 3. Bc4 {[%clk 0:02:59]}  Nf6 {[%clk 0:02:54]} 4. d3 {[%clk 0:03:00]}  h6 {[%clk 0:02:54]} 5. O-O {[%clk 0:02:54]}  d6 {[%clk 0:02:54]} 6. c3 {[%clk 0:02:54]}  g5 {[%clk 0:02:54]} 7. Bb3 {[%clk 0:02:45]}  Bg7 {[%clk 0:02:53]} 8. Be3 {[%clk 0:02:35]}  O-O {[%clk 0:02:50]} 9. Nbd2 {[%clk 0:02:27]}  d5 {[%clk 0:02:50]} 10. Bc5 {[%clk 0:02:24]}  Re8 {[%clk 0:02:50]} 11. Re1 {[%clk 0:02:21]}  b6 {[%clk 0:02:49]} 12. Ba3 {[%clk 0:02:20]}  a6 {[%clk 0:02:36]} 13. Nf1 {[%clk 0:01:53]}  Na5 {[%clk 0:02:26]} 14. Bc2 {[%clk 0:01:10]}  dxe4 {[%clk 0:02:25]} 15. dxe4 {[%clk 0:01:11]}  Qxd1 {[%clk 0:02:20]} 16. Raxd1 {[%clk 0:01:08]}  Nc4 {[%clk 0:02:21]} 17. Ne3 {[%clk 0:01:06]}  Nxa3 {[%clk 0:02:21]} 18. bxa3 {[%clk 0:01:07]}  Be6 {[%clk 0:02:18]} 19. Nd5 {[%clk 0:00:46]}  Bxd5 {[%clk 0:02:08]} 20. exd5 {[%clk 0:00:47]}  e4 {[%clk 0:02:09]} 21. Nd2 {[%clk 0:00:39]}  e3 {[%clk 0:02:01]} 22. Nc4 {[%clk 0:00:19]}  exf2+ {[%clk 0:01:07]} 23. Kxf2 {[%clk 0:00:19]}  Rxe1 {[%clk 0:01:08]} 24. Kxe1 {[%clk 0:00:15]}  Re8+ {[%clk 0:01:07]} 25. Kf1 {[%clk 0:00:14]}  b5 {[%clk 0:01:05]} 26. Nd2 {[%clk 0:00:02]}  Ng4 {[%clk 0:01:04]} 27. Rc1 {[%clk 0:00:03]}  Bh8 {[%clk 0:01:00]} 28. Nf3 {[%clk 0:00:03]}  Bxc3 {[%clk 0:00:58]} 29. Bh7+ {[%clk 0:00:02]}  Kxh7 {[%clk 0:00:58]} 30. Rxc3 {[%clk 0:00:03]}  Ne3+ {[%clk 0:00:59]} 31. Kf2 {[%clk 0:00:03]}  Nxd5 {[%clk 0:00:59]} 32. Rc5 {[%clk 0:00:04]}  Rd8 {[%clk 0:00:59]} 33. Ne5 {[%clk 0:00:04]}  Kg7 {[%clk 0:00:59]} 34. Nc6 {[%clk 0:00:04]}  Rd6 {[%clk 0:00:56]} 35. Nd4 {[%clk 0:00:05]}  Ne7 {[%clk 0:00:54]} 36. Ke3 {[%clk 0:00:04]}  c6 {[%clk 0:00:54]} 37. g4 {[%clk 0:00:04]}  Kg6 {[%clk 0:00:53]} 38. h3 {[%clk 0:00:04]}  f6 {[%clk 0:00:52]} 39. Ke4 {[%clk 0:00:05]}  h5 {[%clk 0:00:51]} 40. a4 {[%clk 0:00:05]}  hxg4 {[%clk 0:00:51]} 41. hxg4 {[%clk 0:00:06]}  Rd5 {[%clk 0:00:50]} 42. Rc3 {[%clk 0:00:03]}  bxa4 {[%clk 0:00:50]} 43. Nxc6 {[%clk 0:00:03]}  Rd7 {[%clk 0:00:49]} 44. Nxe7+ {[%clk 0:00:03]}  Rxe7+ {[%clk 0:00:50]} 45. Kf3 {[%clk 0:00:03]}  Re1 {[%clk 0:00:43]} 46. Rc4 {[%clk 0:00:03]}  Re5 {[%clk 0:00:25]} 47. Rxa4 {[%clk 0:00:03]}  a5 {[%clk 0:00:26]} 48. Rc4 {[%clk 0:00:03]}  Kf7 {[%clk 0:00:26]} 49. Rc7+ {[%clk 0:00:03]}  Kg6 {[%clk 0:00:26]} 50. Ra7 {[%clk 0:00:03]}  Rc5 {[%clk 0:00:25]} 51. Kg3 {[%clk 0:00:03]}  Rc3+ {[%clk 0:00:25]} 52. Kf2 {[%clk 0:00:02]}  Ra3 {[%clk 0:00:26]} 53. Kg2 {[%clk 0:00:02]}  Rxa2+ {[%clk 0:00:25]} 54. Kf3 {[%clk 0:00:03]}  Ra3+ {[%clk 0:00:26]} 55. Kf2 {[%clk 0:00:03]}  Ra4 {[%clk 0:00:20]} 56. Kg3 {[%clk 0:00:03]}  Ra1 {[%clk 0:00:19]} 57. Kf2 {[%clk 0:00:03]}  a4 {[%clk 0:00:17]} 58. Kg2 {[%clk 0:00:03]}  a3 {[%clk 0:00:17]} 59. Kh2 {[%clk 0:00:02]}  Kh6 {[%clk 0:00:14]} 60. Kg2 {[%clk 0:00:03]}  Kg6 {[%clk 0:00:14]} 61. Kh2 {[%clk 0:00:03]}  f5 {[%clk 0:00:15]} 62. Ra6+ {[%clk 0:00:03]}  Kf7 {[%clk 0:00:16]} 63. gxf5 {[%clk 0:00:04]}  g4 {[%clk 0:00:16]} 64. Kg2 {[%clk 0:00:03]}  Ke7 {[%clk 0:00:15]} 65. f6+ {[%clk 0:00:03]}  Kf7 {[%clk 0:00:16]} 66. Kh2 {[%clk 0:00:04]}  a2 {[%clk 0:00:11]} 67. Kg2 {[%clk 0:00:03]}  g3 {[%clk 0:00:12]} 68. Ra7+ {[%clk 0:00:02]}  Kxf6 {[%clk 0:00:12]} 69. Ra6+ {[%clk 0:00:03]}  Ke5 {[%clk 0:00:13]} 70. Ra8 {[%clk 0:00:03]}  Kd4 {[%clk 0:00:13]} 71. Rd8+ {[%clk 0:00:03]}  Kc5 {[%clk 0:00:13]} 72. Rc8+ {[%clk 0:00:04]}  Kb6 {[%clk 0:00:13]} 73. Ra8 {[%clk 0:00:04]}  Kb5 {[%clk 0:00:12]} 74. Rb8+ {[%clk 0:00:04]}  Kc5 {[%clk 0:00:13]} 75. Rc8+ {[%clk 0:00:04]}  Kd5 {[%clk 0:00:13]} 76. Rd8+ {[%clk 0:00:04]}  Ke4 {[%clk 0:00:14]} 77. Re8+ {[%clk 0:00:05]}  Kd3 {[%clk 0:00:14]} 78. Rd8+ {[%clk 0:00:05]}  Kc3 {[%clk 0:00:14]} 79. Rc8+ {[%clk 0:00:05]}  Kb2 {[%clk 0:00:13]} 80. Rb8+ {[%clk 0:00:06]}  Kc3 {[%clk 0:00:12]} 81. Rc8+ {[%clk 0:00:06]}  Kb4 {[%clk 0:00:13]} 82. Rb8+ {[%clk 0:00:06]}  Kc5 {[%clk 0:00:14]} 83. Rc8+ {[%clk 0:00:05]} 1/2-1/2


[Site "https://www.chess.com"]

[Event "Titled Tuesday Blitz November 14 Early 2023"]
[White "Terry, Renato"]
[Black "Bharath Subramaniyam H"]
[WhiteFideId "3803457"]
[BlackFideId "46634827"]
[WhiteElo "3018"]
[BlackElo "2939"]
[Result "1-0"]
[Round "8"]
[TimeControl "180+1"]
[Date "2023.11.14"]
[WhiteClock "0:01:18"]
[BlackClock "0:01:45"]
[Board "7"]

1. d4 {[%clk 0:03:00]}  Nf6 {[%clk 0:02:59]} 2. Nf3 {[%clk 0:03:00]}  b6 {[%clk 0:02:59]} 3. g3 {[%clk 0:03:00]}  Bb7 {[%clk 0:03:00]} 4. Bg2 {[%clk 0:03:00]}  g6 {[%clk 0:03:00]} 5. c4 {[%clk 0:03:00]}  Bg7 {[%clk 0:03:01]} 6. O-O {[%clk 0:03:01]}  O-O {[%clk 0:03:01]} 7. Qc2 {[%clk 0:02:57]}  d5 {[%clk 0:02:46]} 8. cxd5 {[%clk 0:02:54]}  Nxd5 {[%clk 0:02:47]} 9. Rd1 {[%clk 0:02:52]}  a5 {[%clk 0:02:40]} 10. a3 {[%clk 0:02:52]}  e6 {[%clk 0:02:37]} 11. e4 {[%clk 0:02:50]}  Nf6 {[%clk 0:02:37]} 12. Nc3 {[%clk 0:02:50]}  Nbd7 {[%clk 0:02:34]} 13. Bf4 {[%clk 0:02:47]}  Rc8 {[%clk 0:02:33]} 14. h3 {[%clk 0:02:43]}  h6 {[%clk 0:02:33]} 15. g4 {[%clk 0:02:42]}  g5 {[%clk 0:02:31]} 16. Bg3 {[%clk 0:02:41]}  Re8 {[%clk 0:02:31]} 17. b4 {[%clk 0:02:30]}  axb4 {[%clk 0:02:22]} 18. axb4 {[%clk 0:02:31]}  Qe7 {[%clk 0:02:23]} 19. Ra7 {[%clk 0:02:26]}  Ba8 {[%clk 0:02:18]} 20. Qb1 {[%clk 0:02:10]}  h5 {[%clk 0:02:17]} 21. e5 {[%clk 0:01:53]}  Nd5 {[%clk 0:02:15]} 22. Nxd5 {[%clk 0:01:53]}  Bxd5 {[%clk 0:02:16]} 23. gxh5 {[%clk 0:01:52]}  Nf8 {[%clk 0:02:11]} 24. Nh2 {[%clk 0:01:46]}  Bxg2 {[%clk 0:02:07]} 25. Kxg2 {[%clk 0:01:47]}  Ra8 {[%clk 0:02:05]} 26. Rxa8 {[%clk 0:01:40]}  Rxa8 {[%clk 0:02:06]} 27. Ng4 {[%clk 0:01:40]}  Nh7 {[%clk 0:02:06]} 28. h6 {[%clk 0:01:36]}  Bf8 {[%clk 0:02:06]} 29. b5 {[%clk 0:01:35]}  Qd7 {[%clk 0:02:00]} 30. Qxh7+ {[%clk 0:01:32]}  Kxh7 {[%clk 0:02:00]} 31. Nf6+ {[%clk 0:01:32]}  Kg6 {[%clk 0:01:57]} 32. Nxd7 {[%clk 0:01:33]}  Bxh6 {[%clk 0:01:57]} 33. Rc1 {[%clk 0:01:32]}  Ra7 {[%clk 0:01:55]} 34. Rc2 {[%clk 0:01:27]}  Kf5 {[%clk 0:01:54]} 35. Nf6 {[%clk 0:01:27]}  Bf8 {[%clk 0:01:52]} 36. Ne8 {[%clk 0:01:27]}  Ra4 {[%clk 0:01:49]} 37. Rxc7 {[%clk 0:01:23]}  Kg6 {[%clk 0:01:50]} 38. Rd7 {[%clk 0:01:22]}  Bb4 {[%clk 0:01:49]} 39. Nd6 {[%clk 0:01:19]}  f5 {[%clk 0:01:45]} 40. exf6 {[%clk 0:01:18]} 1-0


[Site "https://www.chess.com"]

[Event "Titled Tuesday Blitz November 14 Early 2023"]
[White "Beerdsen, Thomas"]
[Black "Bortnyk, Olexandr"]
[WhiteFideId "1030108"]
[BlackFideId "14120828"]
[WhiteElo "2863"]
[BlackElo "3014"]
[Result "0-1"]
[Round "8"]
[TimeControl "180+1"]
[Date "2023.11.14"]
[WhiteClock "0:00:03"]
[BlackClock "0:00:04"]
[Board "8"]

1. e4 {[%clk 0:03:00]}  Nf6 {[%clk 0:02:59]} 2. e5 {[%clk 0:03:00]}  Nd5 {[%clk 0:02:59]} 3. d4 {[%clk 0:02:58]}  d6 {[%clk 0:02:59]} 4. Nf3 {[%clk 0:02:56]}  dxe5 {[%clk 0:02:59]} 5. Nxe5 {[%clk 0:02:57]}  c6 {[%clk 0:02:59]} 6. Be2 {[%clk 0:02:57]}  Bf5 {[%clk 0:02:58]} 7. O-O {[%clk 0:02:55]}  Nd7 {[%clk 0:02:58]} 8. f4 {[%clk 0:02:54]}  Nxe5 {[%clk 0:02:47]} 9. fxe5 {[%clk 0:02:54]}  e6 {[%clk 0:02:48]} 10. a3 {[%clk 0:02:46]}  Be7 {[%clk 0:02:37]} 11. c4 {[%clk 0:02:46]}  Nb6 {[%clk 0:02:37]} 12. Nc3 {[%clk 0:02:47]}  O-O {[%clk 0:02:23]} 13. Be3 {[%clk 0:02:47]}  c5 {[%clk 0:02:14]} 14. d5 {[%clk 0:02:41]}  Nd7 {[%clk 0:02:13]} 15. d6 {[%clk 0:02:31]}  Bg5 {[%clk 0:02:01]} 16. Qd2 {[%clk 0:02:31]}  h6 {[%clk 0:02:01]} 17. b4 {[%clk 0:01:57]}  Rc8 {[%clk 0:01:44]} 18. Nb5 {[%clk 0:01:48]}  a6 {[%clk 0:01:41]} 19. Nc7 {[%clk 0:01:45]}  Nxe5 {[%clk 0:01:36]} 20. Bxg5 {[%clk 0:01:31]}  hxg5 {[%clk 0:01:37]} 21. Rad1 {[%clk 0:01:32]}  b6 {[%clk 0:00:58]} 22. Qe3 {[%clk 0:01:21]}  Rxc7 {[%clk 0:00:40]} 23. dxc7 {[%clk 0:01:02]}  Qxc7 {[%clk 0:00:41]} 24. Qxg5 {[%clk 0:01:03]}  cxb4 {[%clk 0:00:41]} 25. axb4 {[%clk 0:01:00]}  Nxc4 {[%clk 0:00:40]} 26. Rd4 {[%clk 0:00:58]}  b5 {[%clk 0:00:38]} 27. Rh4 {[%clk 0:00:58]}  Qb6+ {[%clk 0:00:35]} 28. Kh1 {[%clk 0:00:57]}  Bg6 {[%clk 0:00:31]} 29. Bxc4 {[%clk 0:00:36]}  bxc4 {[%clk 0:00:31]} 30. Rxc4 {[%clk 0:00:36]}  Bd3 {[%clk 0:00:30]} 31. Rg4 {[%clk 0:00:34]}  g6 {[%clk 0:00:25]} 32. Qf6 {[%clk 0:00:34]}  Qd8 {[%clk 0:00:21]} 33. Qxd8 {[%clk 0:00:30]}  Rxd8 {[%clk 0:00:21]} 34. Rd1 {[%clk 0:00:29]}  e5 {[%clk 0:00:19]} 35. h4 {[%clk 0:00:18]}  Rd5 {[%clk 0:00:19]} 36. h5 {[%clk 0:00:18]}  Kg7 {[%clk 0:00:18]} 37. hxg6 {[%clk 0:00:18]}  f5 {[%clk 0:00:17]} 38. Rg5 {[%clk 0:00:12]}  e4 {[%clk 0:00:17]} 39. g4 {[%clk 0:00:12]}  e3 {[%clk 0:00:17]} 40. Kg1 {[%clk 0:00:09]}  e2 {[%clk 0:00:14]} 41. Re1 {[%clk 0:00:09]}  Rd4 {[%clk 0:00:04]} 42. gxf5 {[%clk 0:00:09]}  Rf4 {[%clk 0:00:04]} 43. Kh2 {[%clk 0:00:03]}  Rf1 {[%clk 0:00:02]} 44. Rg1 {[%clk 0:00:04]}  Rxf5 {[%clk 0:00:03]} 45. Kh3 {[%clk 0:00:03]}  Rf3+ {[%clk 0:00:02]} 46. Kg4 {[%clk 0:00:03]}  Rf1 {[%clk 0:00:02]} 47. Kg5 {[%clk 0:00:04]}  Bc4 {[%clk 0:00:02]} 48. Rh1 {[%clk 0:00:02]}  Bd3 {[%clk 0:00:02]} 49. Rh7+ {[%clk 0:00:03]}  Kg8 {[%clk 0:00:02]} 50. Rh1 {[%clk 0:00:04]}  Bb5 {[%clk 0:00:02]} 51. Kh6 {[%clk 0:00:03]}  Bc4 {[%clk 0:00:01]} 52. Rhxf1 {[%clk 0:00:03]}  exf1=Q {[%clk 0:00:01]} 53. Re8+ {[%clk 0:00:04]}  Qf8+ {[%clk 0:00:02]} 54. Rxf8+ {[%clk 0:00:04]}  Kxf8 {[%clk 0:00:03]} 55. Kh7 {[%clk 0:00:04]}  Ke7 {[%clk 0:00:03]} 56. g7 {[%clk 0:00:04]}  Kd6 {[%clk 0:00:03]} 57. b5 {[%clk 0:00:03]}  axb5 {[%clk 0:00:04]} 0-1


[Site "https://www.chess.com"]